Cogmind - Beta 16 --- EXPLORER MODE // 2025.12.09 @ 15:51:13 Player: K.K.Y. Result: Destroyed by Y-45 Defender with Heavy Assault Rifle Performance ------------- Evolutions (0) 0 Regions Visited (4) 800 Robots Destroyed (41) 205 Value Destroyed (866) 866 Prototype IDs (12) 240 Alien Tech Used (0) 0 Bonus (-11) -11 TOTAL SCORE: 2100 Bonus ------- Follower Combat Kills 30 Friendly Fire -41 Cogmind --------- Core Integrity 0/250 Matter 290/300 Energy 100/100 System Corruption 0% Temperature Cool (9) Movement Flying (1314) Ox16 Location -8/Recycling Parts ------- > --- POWER (1) -------- (None) > --- PROPULSION (3) --- Flight Unit Flight Unit Flight Unit > --- UTILITY (2) ------ Humpback > --- WEAPON (2) ------- Riot Gun > --- INVENTORY (35) --- Small Storage Unit Structural Scanner Sensor Array Signal Interpreter Makeshift Sword SUBCON Basin (Full) Peak State ------------ > --- POWER ------------ Ion Engine > --- PROPULSION ------- Flight Unit Flight Unit Flight Unit > --- UTILITY ---------- Humpback > --- WEAPON ----------- Barrage Gun Makeshift Shrapnel Gun > --- INVENTORY -------- Small Storage Unit Structural Scanner Sensor Array Riot Gun SUBCON Basin [Rating: 31] Favorites ----------- Power Ion Engine Engine Ion Engine Propulsion Flight Unit Wheel Wheel Hover Unit Hover Unit Flight Unit Flight Unit Utility Humpback Device Weight Redist. System Storage Humpback Weapon Barrage Gun Energy Gun Riot Gun Ballistic Gun Barrage Gun Ballistic Cannon Battle Cannon Special Weapon Mining Laser Build | -11 -10 -10 -10 -8 ------- Run | Yrd Mat Min Sub Rec Slots Evolved 1 | . 1 . . . Power . | . . . . . Propulsion 1 | . 1 . . . Utility . | . . . . . Weapon . | . . . . . Parts Attached 33 | 8 12 1 10 2 Power 4 | 1 2 1 . . Engine 4 | 1 2 1 . . Core . | . . . . . Reactor . | . . . . . Propulsion 13 | 3 6 . 3 1 Treads . | . . . . . Leg . | . . . . . Wheel 3 | 3 . . . . Hover 2 | . 2 . . . Flight 8 | . 4 . 3 1 Utility 5 | 2 1 . 2 . Device 3 | 1 1 . 1 . Storage 2 | 1 . . 1 . Processor . | . . . . . Hackware . | . . . . . Protection . | . . . . . Artifact . | . . . . . Weapon 11 | 2 3 . 5 1 Energy Gun 1 | . . . . 1 Energy Cannon . | . . . . . Ballistic Gun 8 | 2 3 . 3 . Ballistic Cannon 1 | . . . 1 . Launcher . | . . . . . Special Weapon 1 | . . . 1 . Impact Weapon . | . . . . . Slashing Weapon . | . . . . . Piercing Weapon . | . . . . . Special Melee Weapon . | . . . . . Unidentified Prototypes . | . . . . . Parts Lost 9 | . . . 7 2 Power 1 | . . . 1 . Propulsion 4 | . . . 3 1 Utility 1 | . . . 1 . Weapon 3 | . . . 2 1 Highest Loss Streak 2 | . . . 2 2 To Critical Strikes . | . . . . . Average Backups 6 | 3 7 8 6 5 Power . | . . . . . Propulsion . | . . 2 1 . Utility 3 | 2 2 3 3 4 Weapon 1 | . 3 3 1 1 Tool/Special . | . . . . . Unused Backups 8 | . 3 . 2 3 Power . | . . . . . Propulsion 1 | . 1 . . . Utility 2 | . . . . 2 Weapon 5 | . 2 . 2 1 Tool/Special . | . . . . . Average Slot Usage (%) 71 | . 97 100 77 58 Engine 6 | . 12 12 10 . Flight 33 | . 20 37 34 33 Device 1 | . 12 12 . . Storage 12 | . 12 12 12 12 Energy Gun 3 | . . . . 9 Ballistic Gun 11 | . 25 25 15 2 Special Weapon 1 | . . . 2 . Peak Build Rating 31 | 9 10 9 31 27 Average Rating 23 | 2 9 9 24 25 On Entrance 10 | . 9 9 9 27 Avg Prop Armor Cover (%) 12 | . 12 . . . Naked Turns . | . . . . . Heaviest Build 210 | 12 14 14 210 203 Greatest Support 30 | 20 30 18 18 12 Greatest Overweight (x) 50 | . 2 . 50 25 Average Overweight (x) 3 | . . . 5 17 Largest Inventory Capacity 35 | 8 8 8 35 35 Average Capacity 29 | 5 8 8 29 35 Most Carried 24 | 5 8 8 24 22 Average Carried 18 | 4 7 8 19 20 Final Capacity 35 | 8 8 8 35 35 Final Carried 22 | 5 8 8 22 20 Class Distribution -------------------- 81% | Hauler-Mutant 17% | Scavenger-Mutant Dominant Class ---------------- Scavenger-Mutant | -10/Materials Scavenger-Mutant | -10/Mines Hauler-Mutant | -10/Subcaves Hauler-Mutant | -8/Recycling Resources | -11 -10 -10 -10 -8 ----------- Run | Yrd Mat Min Sub Rec Matter Collected 1318 | 312 340 82 572 12 Remotely . | . . . . . Salvage Created 1497 | 116 650 183 433 115 Parts 83 | 11 38 10 19 5 Haulers Intercepted 2 | . 2 . . . Recyclers Shooed 2 | . 2 . . . Parts Field Recycled . | . . . . . Retrieved Matter . | . . . . . Parts Self-Destructed . | . . . . . Prevented . | . . . . . Parts Restored . | . . . . . Kills | -11 -10 -10 -10 -8 ------- Run | Yrd Mat Min Sub Rec Combat Hostiles Destroyed 24 | . 7 4 11 2 Guns 24 | . 7 4 11 2 Classes Destroyed 11 | 2 5 . 3 1 Tunneler 3 | 3 . . . . Hauler 2 | . 2 . . . Recycler 5 | 1 4 . . . Mechanic 1 | . 1 . . . Turret 2 | . . . 2 . Watcher 3 | . 3 . . . Swarmer 9 | . 5 . 4 . Grunt 6 | . 2 4 . . Sentry 2 | . . . . 2 Subdweller 7 | . . . 7 . Zionite 1 | . . . 1 . Best Kill Streak 7 | 4 7 2 4 1 Combat Bots Only 4 | . 3 2 4 1 Max Kills in Single Turn 1 | 1 1 1 1 1 Gunslinging . | . . . . . Exploded . | . . . . . Melee . | . . . . . Uniques/NPCs Destroyed . | . . . . . Combat | -11 -10 -10 -10 -8 -------- Run | Yrd Mat Min Sub Rec Hostile Shots Fired 244 | . 65 9 144 26 Missed 92 | . 29 3 51 9 Hits 152 | . 36 6 93 17 Projectile 152 | . 36 6 93 17 Damage Taken 1081 | . 211 41 638 191 Core 258 | . 63 6 140 49 Absorbed by Shields . | . . . . . Ignored by Resistances 586 | . 144 26 299 117 Regen/Repaired (Parts) 7 | . 7 . . . Core Remaining (%) 100 | 100 . . . . Volleys Fired 149 | 8 43 12 79 7 Largest 2 | 2 2 2 2 1 Hottest 128 | 40 40 40 128 50 Shots Fired 253 | 16 86 24 120 7 Gun 247 | 16 86 24 114 7 Cannon 1 | . . . 1 . Launcher . | . . . . . Special 5 | . . . 5 . Kinetic 244 | 16 86 24 115 3 Thermal 5 | . . . 5 . Explosive . | . . . . . Electromagnetic 4 | . . . . 4 Robot Hit Streak 35 | 4 12 19 35 19 Robot Miss Streak 2 | 1 2 1 1 1 Penetration Max . | . . . . . Secondary Targets 4 | . 2 . 2 . Max Gunslinging Chain 1 | . 1 . 1 . Shots Hit Robots 147 | 9 64 19 48 7 Core Hits 70 | 4 27 10 24 5 Critical Kills . | . . . . . Critical Parts Destroyed . | . . . . . Critical Strikes 1 | . . . 1 . Destroy 1 | . . . 1 . Melee Attacks . | . . . . . Impact . | . . . . . Slashing . | . . . . . Piercing . | . . . . . Sneak Attacks . | . . . . . Combat Hostiles . | . . . . . Follow-up Attacks . | . . . . . Damage Inflicted 2234 | 99 701 263 966 205 Guns 2169 | 99 701 263 966 140 Cannons . | . . . . . Explosions 65 | . . . . 65 Melee . | . . . . . Ramming . | . . . . . Kinetic 2093 | 99 701 263 966 64 Thermal 65 | . . . . 65 Explosive . | . . . . . Electromagnetic 76 | . . . . 76 Impact . | . . . . . Slashing . | . . . . . Piercing . | . . . . . Highest Corruption . | . . . . . Average Corruption . | . . . . . Corruption Purged . | . . . . . Corruption Blocked . | . . . . . Overload Shots . | . . . . . Overflow Damage . | . . . . . Projectiles . | . . . . . Explosions . | . . . . . Melee . | . . . . . Knockbacks . | . . . . . Impact . | . . . . . Kinetic . | . . . . . Secondary . | . . . . . Self-Inflicted Damage 26 | . . . . 26 Shots 1 | . . . . 1 Rammed . | . . . . . Targets Rammed . | . . . . . Kicked . | . . . . . Crushed . | . . . . . Highest Temperature 42 | . 28 2 3 42 Average Temperature 7 | . 5 1 3 20 Received Heat Transfer 465 | . 120 39 243 63 Siege Activations . | . . . . . Martial Activations . | . . . . . Shielding Activations . | . . . . . Robots Disrupted . | . . . . . Combat Hostiles . | . . . . . Robots Corrupted . | . . . . . Combat Hostiles . | . . . . . Parts Fried . | . . . . . Impact Corruptions . | . . . . . Robots Melted . | . . . . . Combat Hostiles . | . . . . . Parts Melted . | . . . . . Heat Transferred 100 | . . . . 100 Parts Sabotaged . | . . . . . Parts Stolen . | . . . . . Parts Stripped . | . . . . . Power Chain Reactions 1 | . . . . 1 Alert | -11 -10 -10 -10 -8 ------- Run | Yrd Mat Min Sub Rec Maximum Alert Level . | . . . . . Low Security (%) 100 | 100 100 100 . 100 Level 1 . | . . . . . Level 2 . | . . . . . Level 3 . | . . . . . Level 4 . | . . . . . Level 5 . | . . . . . High Security . | . . . . . Max Security . | . . . . . Peak Influence 99 | 10 99 51 . 28 Initial . | . . . . . Average 3 | 2 23 12 . . Influence Increases 840 | 20 236 101 435 48 Destroy 0b10 Robot/C 380 | . 140 80 120 40 Destroy 0b10 Robot/NC 70 | 20 50 . . . Destroy Leader 60 | . 40 20 . . Allied During Kill 1 | . . 1 . . Successful Hack 6 | . 6 . . . Destroy Structure 8 | . . . . 8 Lose Combat Pursuer 315 | . . . 315 . Influence Decreases 840 | 20 236 101 435 48 Time Decay 820 | 20 236 101 415 48 Lost Part 20 | . . . 20 . Squads Dispatched . | . . . . . Investigation . | . . . . . Extermination . | . . . . . Reinforcement . | . . . . . Assault . | . . . . . Garrison . | . . . . . Intercept . | . . . . . Searches Triggered . | . . . . . Construction Impeded . | . . . . . Haulers Reinforced . | . . . . . Active Scanning Responses . | . . . . . Cargo Convoy Interrupts . | . . . . . Stealth | -11 -10 -10 -10 -8 --------- Run | Yrd Mat Min Sub Rec Distress Signals 1 | . 1 . . . Communications Jammed . | . . . . . Distress Signals . | . . . . . Times Spotted 40 | . 18 4 14 4 Peak Tracking Total 5 | . 5 2 5 1 Tactical Retreats 13 | . . . 13 . Traps | -11 -10 -10 -10 -8 ------- Run | Yrd Mat Min Sub Rec Traps Triggered 6 | . 1 . 5 . Indirectly . | . . . . . Trap Hack Attempts . | . . . . . Triggered . | . . . . . Disarmed . | . . . . . Reprogrammed . | . . . . . Reused . | . . . . . Traps Extracted . | . . . . . Installed . | . . . . . Triggered . | . . . . . Machines | -11 -10 -10 -10 -8 ---------- Run | Yrd Mat Min Sub Rec Machines Disabled . | . . . . . Max in Single Turn . | . . . . . Machines Repaired . | . . . . . Machines Dismantled . | . . . . . Machines Sabotaged . | . . . . . Overloaded Fab Kills . | . . . . . Hacking | -11 -10 -10 -10 -8 --------- Run | Yrd Mat Min Sub Rec Machines Accessed 21 | . 10 2 4 5 Terminals 10 | . 7 2 . 1 Fabricators . | . . . . . Repair Stations 1 | . 1 . . . Recycling Units 6 | . 2 . . 4 Scanalyzers . | . . . . . Garrison Access . | . . . . . Total Hacks 32 | . 15 2 9 6 Successful 32 | . 15 2 9 6 Failed . | . . . . . Catastrophic . | . . . . . Database Lockouts . | . . . . . Manual 13 | . 8 2 . 3 Terminals 13 | . 10 2 . 1 Fabricators . | . . . . . Repair Stations 2 | . 2 . . . Recycling Units 8 | . 3 . . 5 Scanalyzers . | . . . . . Garrison Access . | . . . . . Terminal Hacks 12 | . 3 . 9 . Record 6 | . . . 6 . Robot Analysis 2 | . 2 . . . Open Door 1 | . . . 1 . Terminal Index 1 | . 1 . . . Proto ID Catalog 1 | . . . 1 . Release Object 1 | . . . 1 . Fabricator Hacks . | . . . . . Repair Station Hacks 2 | . 2 . . . Scan Component 1 | . 1 . . . Repair 1 | . 1 . . . Recycling Unit Hacks 6 | . 2 . . 4 Retrieve Components 6 | . 2 . . 4 Scanalyzer . | . . . . . Garrison Access Hacks . | . . . . . Unauthorized Hacks 12 | . 8 2 . 2 Terminals 10 | . 7 2 . 1 Botnet 10 | . 7 2 . 1 Fabricators . | . . . . . Repair Stations . | . . . . . Recycling Units 2 | . 1 . . 1 Reject 2 | . 1 . . 1 Scanalyzers . | . . . . . Garrison Access . | . . . . . Data Cores Recovered . | . . . . . Used . | . . . . . Hacking Detections 6 | . 4 1 . 1 Full Trace Events . | . . . . . Feedback Events . | . . . . . Feedback Blocked . | . . . . . Robot Schematics Acquired . | . . . . . Robots Built . | . . . . . Authchips . | . . . . . Time . | . . . . . Total Robot Build Rating . | . . . . . Part Schematics Acquired . | . . . . . Parts Built . | . . . . . Authchips . | . . . . . Time . | . . . . . Total Part Build Rating . | . . . . . Part Studies Acquired . | . . . . . Parts Repaired 1 | . 1 . . . Time 26 | . 26 . . . Parts Recycled . | . . . . . Recycled Matter . | . . . . . Retrieved Matter . | . . . . . Retrieved Components 24 | . 19 . . 5 Parts Scanalyzed . | . . . . . Part Schematics Acquired . | . . . . . Parts Damaged . | . . . . . Bothacking | -11 -10 -10 -10 -8 ------------ Run | Yrd Mat Min Sub Rec Used RIF Installer . | . . . . . Robots Hacked . | . . . . . Non-combat . | . . . . . Combat . | . . . . . Robot Hacks Applied . | . . . . . Relay Couplers Released . | . . . . . Fabnet Peak Effective % . | . . . . . Robots Rewired . | . . . . . Allies Hacked . | . . . . . Hacks Repelled . | . . . . . Allies | -11 -10 -10 -10 -8 -------- Run | Yrd Mat Min Sub Rec Total Allies 2 | . . 2 . . Largest Group 2 | . . 2 2 . Highest-Rated Group 39 | . . 39 39 . Highest-Rated Ally 31 | . . 31 31 . Total Orders . | . . . . . Ally Attacks 11 | . . 5 6 . Total Damage 96 | . . . 96 . Kills 1 | . . . 1 . Allies Corrupted . | . . . . . Allies Melted . | . . . . . Intel | -11 -10 -10 -10 -8 ------- Run | Yrd Mat Min Sub Rec Active Infowar (turns) 658 | 13 308 . 337 . Terrain 321 | 13 308 . . . Structural 337 | . . . 337 . Robot Analysis Total 2 | . 2 . . . Derelict Logs Recovered 4 | . . 2 2 . Drone Launches . | . . . . . Drone Recoveries . | . . . . . Exploration | -11 -10 -10 -10 -8 ------------- Run | Yrd Mat Min Sub Rec Turns Passed 11872 | 85 615 298 6489 4385 Spaces Moved 3215 | 77 912 521 1405 300 Core 60 | 60 . . . . Treads . | . . . . . Legs . | . . . . . Wheels 202 | 17 185 . . . Hover 20 | . 20 . . . Flight 2933 | . 707 521 1405 300 Fastest Speed 34 | 50 34 34 34 1314 Average Speed 349 | 56 47 34 444 1453 Slowest Speed 4040 | 80 200 34 4040 2037 Overloaded Moves . | . . . . . Propulsion Burnouts . | . . . . . Robots Hopped 4 | . 2 2 . . Potential Cave-ins . | . . . . . Cave-ins Triggered . | . . . . . Exploration Rate (%) 66 | 3 99 97 80 51 Regions Visited 4 Branch Regions 3 Pre-discovered Areas 1 | . . . 1 . Known Exits Taken 4 | 1 1 1 1 . Unknown Exits Taken . | . . . . . Scrap Searched 4 | . . . 4 . Spaces Dug . | . . . . . Terrain Destroyed 9 | . . . . 9 Melee . | . . . . . Projectile . | . . . . . AOE 9 | . . . . 9 Terrain Rammed . | . . . . . Walls Destroyed . | . . . . . Machines Disabled . | . . . . . Actions | -11 -10 -10 -10 -8 --------- Run | Yrd Mat Min Sub Rec Total 3595 | 102 1023 615 1536 319 Wait 148 | . 27 83 28 10 Move 3203 | 76 907 516 1404 300 Hop 4 | . 2 2 . . Pick Up 31 | 9 12 . 10 . Fast Attach 9 | 3 6 . . . Attach 15 | 4 3 . 6 2 Detach 1 | . . . 1 . Swap 13 | 1 7 1 4 . Drop 22 | 1 16 1 4 . Fire 149 | 8 43 12 79 7 Melee . | . . . . . Ram . | . . . . . Kick . | . . . . . Crush . | . . . . . Escape Stasis . | . . . . . Rewire . | . . . . . Trap . | . . . . . Miscellaneous . | . . . . . Route ------- -11/Scrapyard -10/Materials (discovered 5 exits: *Mat x3 / *Min / *Sub) -10/Mines (discovered 3 exits: *Mat x2 / *Sub) -10/Subcaves (discovered 4 exits: *Mat x2 / *Rec / [*Scr]) -8/Recycling History --------- Turn | Location | Event 10 | -11/Scrapyard | Identified exit to Materials 10 | -11/Scrapyard | Discovered exit to Materials (range 15) 86 | -11/Scrapyard | Entered Materials 86 | -10/Materials | Evolved 1 slot: Propulsion x1 368 | -10/Materials | Identified exit to Mines 368 | -10/Materials | Discovered exit to Mines (range 8) 502 | -10/Materials | Repaired Flight Unit 515 | -10/Materials | Identified exit to Materials 515 | -10/Materials | Discovered exit to Materials (range 15) 592 | -10/Materials | Discovered exit to Materials (range 10) 611 | -10/Materials | Identified exit to Subcaves 611 | -10/Materials | Discovered exit to Subcaves (range 6) 659 | -10/Materials | Discovered exit to Materials (range 10) 701 | -10/Materials | Entered Mines 766 | -10/Mines | Discovered exit to Materials (range 8) 794 | -10/Mines | Learned Materials emergency access door positions 797 | -10/Mines | Build established: Scavenger-Mutant 841 | -10/Mines | Received a Rocket Launcher from a helpful Derelict 869 | -10/Mines | Learned Materials emergency access door positions 869 | -10/Mines | Discovered exit to Materials (range 14) 928 | -10/Mines | Discovered exit to Subcaves (range 6) 999 | -10/Mines | Entered Subcaves 999 | -10/Subcaves | Accompanied by 2 allies 1000 | -10/Subcaves | Approached by a straggling Scientist 1004 | -10/Subcaves | Led the pair of lost Derelicts to an unsafe place 1014 | -10/Subcaves | Learned location of Zion (-7) 1015 | -10/Subcaves | Visited 4L-MR0's lab 1038 | -10/Subcaves | Identified exit to Materials 1038 | -10/Subcaves | Discovered exit to Materials (range 15) 1054 | -10/Subcaves | Disturbed a concealed Subdweller 1121 | -10/Subcaves | Learned 4 Materials zone layouts 1209 | -10/Subcaves | Shifting Twisted Machinery released Barrage Gun 1221 | -10/Subcaves | Shifting Twisted Machinery released Battle Cannon 1389 | -10/Subcaves | Visited Clippyterm 1392 | -10/Subcaves | Learned Factory emergency access door positions 1392 | -10/Subcaves | Learned Factory trap positions 1836 | -10/Subcaves | Shifting Twisted Machinery released Enh. Flamer 1845 | -10/Subcaves | A swath of the cavern ceiling suddenly collapsed 2089 | -10/Subcaves | Core integrity fell below 50% 2245 | -10/Subcaves | Found SUBCON Basin 2535 | -10/Subcaves | Build established: Hauler-Mutant 3356 | -10/Subcaves | A swath of the cavern ceiling suddenly collapsed 5137 | -10/Subcaves | Shifting Twisted Machinery released Riot Gun 6536 | -10/Subcaves | Discovered exit to Materials (range 8) 6536 | -10/Subcaves | Identified exit to Recycling 6536 | -10/Subcaves | Discovered exit to Recycling (range 14) 6836 | -10/Subcaves | Core integrity fell below 20% 7488 | -10/Subcaves | Entered Recycling 9215 | -8/Recycling | Scanned before Scraplab entrance 11873 | -8/Recycling | Destroyed by Y-45 Defender with Heavy Assault Rifle Last Messages --------------- 09340_ The wall retracts into the floor. 09350_ The floor rises up to form a wall. 09381_ The wall retracts into the floor. 09391_ The floor rises up to form a wall. 09463_ The wall retracts into the floor. 09473_ The floor rises up to form a wall. 09497_ The wall retracts into the floor. 09507_ The floor rises up to form a wall. 09852_ Connecting with Recycling Unit... >>Retrieve(Components) Retrieving 3 components... Pulse Rifle Thermal Generator EM Pulse Cannon 09918_ Connecting with Recycling Unit... >>Retrieve(Components) Retrieving 1 components... Minigun 10982_ Connecting with Recycling Unit... 11865_ Y-45 Defender springs to life. Map ----- +----------------------------------------------------+ | ????????????????????????????# #?# | | ????????????????????????????# #?#### | | ????????????????????????????# """ """ #????# | | ????????????????????????????# """"""""" #????? | | ????????????????????????????# """"" " #????? | | ????????????????????????????# #????? | | ????????????????????????????# """ """ #????? | | ????????????????????????????# """"""""" #????? | | ????????????????????????????# """"" " #????? | | ????????????????????????????# #????? | | ????????????????????#######?# #????? | | ????????????????????# ########+###+###????? | | ????????????????????# #??????? | | ????????????????????# #??????? | | ????????????????????# #??????? | | ????????????????????# ############ #??????? | | ????????????????????## ##?????######+####???? | | ?????????????????????# #??????# #???? | | ?????????????????????# #??????# #???? | | ?????????????????????# #??????# #???? | | ?????????????????????# #?????## #???? | | ?????????????????????# #?????# ##??? | | ?????????????????????# #?????## #??? | | ?????????????????????# #??????# ##??? | | ?????????????????????# #??????# #?### | | ?????????????????????#@ #??### ########+#### | | ???????????????????? Y | | ?????????????????? | | ???????????????? Y | | ???????????????############### #########"Y"## | | ???????????????????????????????????????#"""#### | | ???????????????????????????????????????#####??? | | ??????????????????????????????????????????????? | | | | | | | | | | | | | | | | | | | | | | | | | | | | | | | | | | | +----------------------------------------------------+ Best States ------------- Heat Dissipation 25 Energy Generation 10 Energy Capacity 250 Matter Stores 300 Matter Capacity 300 Sight Range 16 Terrain Scan Range 16 Terrain Scan Density 10 Additional Mass Support 6 Resistance: KI 35 Resistance: TH 35 Resistance: EX 35 Resistance: EM 35 Resistance: I 35 Resistance: S 35 Resistance: P 35 Evasion (%) 63 Offensive Hacking 20 Item Schematics ----------------- None Robot Schematics ------------------ None Fabricated ------------ Nothing Repaired ---------- Flight Unit | 65% | -10/Materials Studied --------- None Alien Tech Used ----------------- None Achievements -------------- None Challenges ------------ None Game ------ Seed ScrapServoWell Manual? 0 Play Time 00:25:32 Cumulative 182.7 hours Start 2025.12.09 @ 15:28:00 End 2025.12.09 @ 15:51:13 Sessions 1 Manual Loads 0 Difficulty Explorer Special Mode None Game No. 260 Rogue 0 Adventurer 0 Explorer 260 Win Type - Total 0 Types 0/0/0/0/0/0/0/0/0/0 Lore% 70 Gallery% 67 Achievement% 53 Wizard Run 0 Options --------- Layout 1 ASCII 0 Keyboard 0 Movement Mouse Keybinds 0 Fullscreen 1 Font 24/Smallcaps Map View 50x35 Zoom Use 0% Tactical HUD 1 Map Filters NONE Filters NONE Steam 1 RUN: be9ae320-1763-488e-a030-3fb288ceede8